[Event "Schack-SM 2023: Veteran-SM 65+"]
[Site "Helsingborg Arena, Mellersta Stenbocksgatan 14, Helsingborg, Sweden"]
[Date "2023.07.06"]
[Round "6.4"]
[White "Sigeman, Johan"]
[Black "Alquist, Erik"]
[Result "1/2-1/2"]
[TimeControl "90 minutes for 40 moves + 30 minutes for the rest of games + 30 seconds per move from move one."]
[WhiteElo "2052"]
[BlackElo "1936"]

1. d4 {[%clk 01:30:57]} {[%emt 00:00:02]} Nf6 {[%clk 01:30:50]} {[%emt
00:00:10]} 2. c4 {[%clk 01:31:17]} {[%emt 00:00:10]} g6 {[%clk 01:31:06]}
{[%emt 00:00:15]} 3. g3 {[%clk 01:31:28]} {[%emt 00:00:19]} c6 {[%clk
01:30:54]} {[%emt 00:00:41]} 4. Nf3 {[%clk 01:29:27]} {[%emt 00:02:31]} Bg7
{[%clk 01:30:42]} {[%emt 00:00:42]} 5. Bg2 {[%clk 01:28:26]} {[%emt 00:01:31]}
d5 {[%clk 01:27:33]} {[%emt 00:03:39]} 6. b3 {[%clk 01:25:16]} {[%emt
00:03:40]} dxc4 {[%clk 01:27:25]} {[%emt 00:00:39]} 7. bxc4 {[%clk 01:25:36]}
{[%emt 00:00:09]} c5 {[%clk 01:27:45]} {[%emt 00:00:10]} 8. e3 {[%clk
01:17:18]} {[%emt 00:08:49]} Nc6 {[%clk 01:22:39]} {[%emt 00:05:36]} 9. Bb2
{[%clk 01:05:22]} {[%emt 00:12:26]} cxd4 {[%clk 01:17:19]} {[%emt 00:05:50]} 10.
Nxd4 {[%clk 00:57:59]} {[%emt 00:07:52]} Qb6 {[%clk 01:07:09]} {[%emt
00:10:41]} 11. Nxc6 {[%clk 00:52:42]} {[%emt 00:05:47]} bxc6 {[%clk 01:06:56]}
{[%emt 00:00:42]} 12. Qb3 {[%clk 00:50:25]} {[%emt 00:02:48]} Rb8 {[%clk
01:04:49]} {[%emt 00:02:37]} 13. Qxb6 {[%clk 00:49:50]} {[%emt 00:01:05]} Rxb6
{[%clk 01:04:32]} {[%emt 00:00:46]} 14. Bd4 {[%clk 00:49:46]} {[%emt 00:00:34]}
Ra6 {[%clk 01:01:38]} {[%emt 00:03:24]} 15. Nd2 {[%clk 00:47:13]} {[%emt
00:03:03]} O-O {[%clk 01:00:04]} {[%emt 00:02:05]} 16. O-O {[%clk 00:46:32]}
{[%emt 00:01:11]} Be6 {[%clk 00:58:50]} {[%emt 00:01:43]} 17. Rfb1 {[%clk
00:39:08]} {[%emt 00:07:52]} 1/2-1/2

[Event "Schack-SM 2023: Veteran-SM 50+"]
[Site "Helsingborg Arena, Mellersta Stenbocksgatan 14, Helsingborg, Sweden"]
[Date "2023.07.06"]
[Round "6.4"]
[White "Eriksson, Bengt"]
[Black "Nurmi, Tommy"]
[Result "1/2-1/2"]
[TimeControl "90 minutes for 40 moves + 30 minutes for the rest of games + 30 seconds per move from move one."]
[WhiteElo "2016"]
[BlackElo "2010"]

1. d4 {[%clk 01:30:54]} {[%emt 00:00:04]} d5 {[%clk 01:30:42]} {[%emt
00:00:19]} 2. Bg5 {[%clk 01:30:53]} {[%emt 00:00:31]} h6 {[%clk 01:30:28]}
{[%emt 00:00:44]} 3. Bh4 {[%clk 01:30:55]} {[%emt 00:00:27]} c6 {[%clk
01:29:09]} {[%emt 00:01:49]} 4. e3 {[%clk 01:30:07]} {[%emt 00:01:19]} Qb6
{[%clk 01:27:53]} {[%emt 00:01:46]} 5. Nf3 {[%clk 01:26:11]} {[%emt 00:04:25]}
Bf5 {[%clk 01:23:38]} {[%emt 00:04:46]} 6. b3 {[%clk 01:15:54]} {[%emt
00:10:47]} e6 {[%clk 01:18:35]} {[%emt 00:05:33]} 7. Bd3 {[%clk 01:14:18]}
{[%emt 00:02:05]} Bxd3 {[%clk 01:13:46]} {[%emt 00:05:19]} 8. Qxd3 {[%clk
01:14:40]} {[%emt 00:00:08]} Qa6 {[%clk 01:11:31]} {[%emt 00:02:46]} 9. c4
{[%clk 01:11:26]} {[%emt 00:03:44]} Bb4+ {[%clk 01:03:46]} {[%emt 00:08:15]} 10.
Nbd2 {[%clk 01:10:05]} {[%emt 00:01:50]} Nd7 {[%clk 01:01:40]} {[%emt
00:02:36]} 11. O-O {[%clk 01:07:13]} {[%emt 00:03:22]} Ngf6 {[%clk 00:53:22]}
{[%emt 00:08:49]} 12. e4 {[%clk 00:51:57]} {[%emt 00:15:45]} Bxd2 {[%clk
00:49:13]} {[%emt 00:04:38]} 13. Nxd2 {[%clk 00:50:54]} {[%emt 00:01:34]} Nxe4
{[%clk 00:47:10]} {[%emt 00:02:34]} 14. Nxe4 {[%clk 00:51:13]} {[%emt
00:00:11]} dxe4 {[%clk 00:47:36]} {[%emt 00:00:04]} 15. Qxe4 {[%clk 00:51:03]}
{[%emt 00:00:40]} O-O {[%clk 00:46:17]} {[%emt 00:01:50]} 16. f4 {[%clk
00:36:30]} {[%emt 00:15:02]} c5 {[%clk 00:43:56]} {[%emt 00:02:51]} 17. d5
{[%clk 00:20:51]} {[%emt 00:16:09]} Rfe8 {[%clk 00:32:36]} {[%emt 00:11:50]} 18.
f5 {[%clk 00:03:42]} {[%emt 00:17:40]} exd5 {[%clk 00:19:07]} {[%emt 00:13:58]}
19. Qxd5 {[%clk 00:03:56]} {[%emt 00:00:16]} Nf6 {[%clk 00:16:48]} {[%emt
00:02:49]} 20. Qxc5 {[%clk 00:03:28]} {[%emt 00:00:59]} Re2 {[%clk 00:07:40]}
{[%emt 00:09:37]} 21. a4 {[%clk 00:02:26]} {[%emt 00:01:33]} Rae8 {[%clk
00:05:59]} {[%emt 00:02:10]} 22. Rae1 {[%clk 00:01:46]} {[%emt 00:01:10]} Nd7
{[%clk 00:02:32]} {[%emt 00:03:58]} 23. Qd4 {[%clk 00:01:10]} {[%emt 00:01:05]}
Qc6 {[%clk 00:02:06]} {[%emt 00:00:55]} 24. Qg4 {[%clk 00:00:38]} {[%emt
00:01:02]} Rxe1 {[%clk 00:01:37]} {[%emt 00:01:00]} 25. Rxe1 {[%clk 00:01:07]}
{[%emt 00:00:01]} Rxe1+ {[%clk 00:01:53]} {[%emt 00:00:13]} 26. Bxe1 {[%clk
00:01:34]} {[%emt 00:00:03]} Qb6+ {[%clk 00:02:12]} {[%emt 00:00:12]} 27. Kf1
{[%clk 00:00:33]} {[%emt 00:01:31]} Qxb3 {[%clk 00:02:30]} {[%emt 00:00:12]} 28.
f6 {[%clk 00:00:33]} {[%emt 00:00:30]} Nxf6 {[%clk 00:02:50]} {[%emt 00:00:10]}
29. Qc8+ {[%clk 00:01:02]} {[%emt 00:00:01]} Kh7 {[%clk 00:03:11]} {[%emt
00:00:10]} 30. Qf5+ {[%clk 00:01:21]} {[%emt 00:00:10]} Kg8 {[%clk 00:03:37]}
{[%emt 00:00:04]} 31. Qc8+ {[%clk 00:01:14]} {[%emt 00:00:37]} Kh7 {[%clk
00:03:58]} {[%emt 00:00:09]} 32. Qf5+ {[%clk 00:01:21]} {[%emt 00:00:23]} Kh8
{[%clk 00:04:07]} {[%emt 00:00:21]} 33. Qc8+ {[%clk 00:00:39]} {[%emt
00:01:11]} Kh7 {[%emt 00:01:30]} 1/2-1/2

[Event "Schack-SM 2023: Mastarklassen-elit"]
[Site "Helsingborg Arena, Mellersta Stenbocksgatan 14, Helsingborg, Sweden"]
[Date "2023.07.06"]
[Round "6.5"]
[White "Walinder, Lars"]
[Black "Lindberg, Bengt"]
[Result "0-1"]
[TimeControl "90 minutes for 40 moves + 30 minutes for the rest of games + 30 seconds per move from move one."]
[WhiteTitle "FM"]
[BlackTitle "IM"]
[WhiteElo "2310"]
[BlackElo "2353"]

1. c4 {[%clk 01:30:57]} {[%emt 00:00:03]} Nf6 {[%clk 01:30:56]} {[%emt
00:00:05]} 2. Nc3 {[%clk 01:31:16]} {[%emt 00:00:10]} c5 {[%clk 01:31:22]}
{[%emt 00:00:05]} 3. Nf3 {[%clk 01:31:28]} {[%emt 00:00:18]} e6 {[%clk
01:31:44]} {[%emt 00:00:07]} 4. e3 {[%clk 01:31:43]} {[%emt 00:00:15]} a6
{[%clk 01:32:08]} {[%emt 00:00:06]} 5. g3 {[%clk 01:22:29]} {[%emt 00:09:44]}
d6 {[%clk 01:28:54]} {[%emt 00:03:43]} 6. d4 {[%clk 01:22:10]} {[%emt
00:00:50]} Nbd7 {[%clk 01:28:49]} {[%emt 00:00:35]} 7. Bg2 {[%clk 01:22:04]}
{[%emt 00:00:35]} Be7 {[%clk 01:28:55]} {[%emt 00:00:24]} 8. O-O {[%clk
01:21:58]} {[%emt 00:00:38]} O-O {[%clk 01:29:12]} {[%emt 00:00:12]} 9. b3
{[%clk 01:18:31]} {[%emt 00:03:58]} Rb8 {[%clk 01:29:24]} {[%emt 00:00:18]} 10.
Qe2 {[%clk 01:16:15]} {[%emt 00:02:45]} b6 {[%clk 01:28:42]} {[%emt 00:01:12]}
11. Bb2 {[%clk 01:08:58]} {[%emt 00:07:46]} Bb7 {[%clk 01:27:15]} {[%emt
00:01:58]} 12. e4 {[%clk 01:05:22]} {[%emt 00:04:06]} cxd4 {[%clk 01:27:37]}
{[%emt 00:00:09]} 13. Nxd4 {[%clk 01:05:43]} {[%emt 00:00:09]} Re8 {[%clk
01:24:46]} {[%emt 00:03:20]} 14. Rad1 {[%clk 00:57:11]} {[%emt 00:09:03]} Qc7
{[%clk 01:24:23]} {[%emt 00:00:52]} 15. f4 {[%clk 00:51:26]} {[%emt 00:06:15]}
Bf8 {[%clk 01:24:33]} {[%emt 00:00:20]} 16. Nf3 {[%clk 00:48:01]} {[%emt
00:03:56]} Ba8 {[%clk 01:19:48]} {[%emt 00:05:14]} 17. Rfe1 {[%clk 00:43:27]}
{[%emt 00:05:04]} b5 {[%clk 01:03:59]} {[%emt 00:16:19]} 18. cxb5 {[%clk
00:37:06]} {[%emt 00:06:52]} axb5 {[%clk 01:04:19]} {[%emt 00:00:10]} 19. e5
{[%clk 00:36:31]} {[%emt 00:01:05]} dxe5 {[%clk 01:03:49]} {[%emt 00:01:00]} 20.
fxe5 {[%clk 00:36:49]} {[%emt 00:00:12]} Bc5+ {[%clk 00:43:02]} {[%emt
00:21:16]} 21. Nd4 {[%clk 00:32:53]} {[%emt 00:04:27]} Qb6 {[%clk 00:43:23]}
{[%emt 00:00:08]} 22. Ne4 {[%clk 00:22:34]} {[%emt 00:10:49]} Bxe4 {[%clk
00:32:18]} {[%emt 00:11:35]} 23. Bxe4 {[%clk 00:22:36]} {[%emt 00:00:28]} Nxe5
{[%clk 00:32:29]} {[%emt 00:00:18]} 24. Kg2 {[%clk 00:07:12]} {[%emt 00:15:55]}
Nxe4 {[%clk 00:29:13]} {[%emt 00:03:45]} 25. Qxe4 {[%clk 00:07:39]} {[%emt
00:00:04]} Ng6 {[%clk 00:28:48]} {[%emt 00:00:54]} 26. Nf3 {[%clk 00:07:29]}
{[%emt 00:00:40]} Ra8 {[%clk 00:26:57]} {[%emt 00:02:22]} 27. Ra1 {[%clk
00:07:06]} {[%emt 00:00:54]} Rad8 {[%clk 00:21:14]} {[%emt 00:06:11]} 28. b4
{[%clk 00:06:03]} {[%emt 00:01:34]} Bf8 {[%clk 00:21:04]} {[%emt 00:00:38]} 29.
a3 {[%clk 00:06:13]} {[%emt 00:00:23]} h6 {[%clk 00:18:31]} {[%emt 00:03:02]}
30. Rac1 {[%clk 00:06:30]} {[%emt 00:00:13]} Qb8 {[%clk 00:17:26]} {[%emt
00:01:33]} 31. Rc2 {[%clk 00:06:29]} {[%emt 00:00:32]} Rd5 {[%clk 00:15:26]}
{[%emt 00:02:30]} 32. Rec1 {[%clk 00:06:47]} {[%emt 00:00:12]} Qa8 {[%clk
00:11:37]} {[%emt 00:04:19]} 33. Rc6 {[%clk 00:05:42]} {[%emt 00:01:37]} Rd6
{[%clk 00:09:23]} {[%emt 00:02:43]} 34. Qc2 {[%clk 00:05:57]} {[%emt 00:00:15]}
Red8 {[%clk 00:08:51]} {[%emt 00:01:01]} 35. Rxd6 {[%clk 00:05:46]} {[%emt
00:00:42]} Rxd6 {[%clk 00:09:11]} {[%emt 00:00:09]} 36. Qe2 {[%clk 00:05:09]}
{[%emt 00:01:08]} Qb7 {[%clk 00:07:02]} {[%emt 00:02:39]} 37. Kg1 {[%clk
00:04:59]} {[%emt 00:00:40]} Qd7 {[%clk 00:06:03]} {[%emt 00:01:28]} 38. Ne5
{[%clk 00:03:17]} {[%emt 00:02:14]} Nxe5 {[%clk 00:06:07]} {[%emt 00:00:25]} 39.
Qxe5 {[%clk 00:03:35]} {[%emt 00:00:13]} Rd5 {[%clk 00:05:42]} {[%emt
00:00:54]} 40. Qc3 {[%clk 00:02:20]} {[%emt 00:01:45]} Rd3 {[%clk 00:05:05]}
{[%emt 00:01:06]} 41. Qe5 {[%clk 00:01:24]} {[%emt 00:01:27]} Rd2 {[%clk
00:26:25]} {[%emt 00:09:07]} 42. Rc7 {[%clk 00:24:05]} {[%emt 00:07:52]} Rd1+
{[%clk 00:25:28]} {[%emt 00:01:27]} 43. Kg2 {[%clk 00:23:27]} {[%emt 00:01:08]}
Qd2+ {[%clk 00:24:54]} {[%emt 00:01:03]} 44. Kh3 {[%clk 00:23:30]} {[%emt
00:00:28]} Rh1 {[%clk 00:24:14]} {[%emt 00:01:09]} 45. g4 {[%clk 00:22:42]}
{[%emt 00:01:19]} Re1 {[%clk 00:24:10]} {[%emt 00:00:33]} 46. Rd7 {[%clk
00:19:59]} {[%emt 00:03:14]} Re3+ {[%clk 00:23:51]} {[%emt 00:00:48]} 0-1

[Event "Schack-SM 2023: Mastarklassen"]
[Site "Helsingborg Arena, Mellersta Stenbocksgatan 14, Helsingborg, Sweden"]
[Date "2023.07.06"]
[Round "6.7"]
[White "Mashhadi, Peyman"]
[Black "Nylen, Anders"]
[Result "1/2-1/2"]
[TimeControl "90 minutes for 40 moves + 30 minutes for the rest of games + 30 seconds per move from move one."]
[WhiteElo "2117"]
[BlackElo "2094"]

1. e4 {[%clk 01:30:55]} {[%emt 00:00:05]} c5 {[%clk 01:30:57]} {[%emt
00:00:04]} 2. Nf3 {[%clk 01:31:07]} {[%emt 00:00:17]} d6 {[%clk 01:31:23]}
{[%emt 00:00:04]} 3. d4 {[%clk 01:31:16]} {[%emt 00:00:20]} cxd4 {[%clk
01:31:49]} {[%emt 00:00:06]} 4. Nxd4 {[%clk 01:31:36]} {[%emt 00:00:08]} Nf6
{[%clk 01:32:13]} {[%emt 00:00:08]} 5. Nc3 {[%clk 01:31:50]} {[%emt 00:00:16]}
a6 {[%clk 01:32:38]} {[%emt 00:00:05]} 6. Be2 {[%clk 01:31:55]} {[%emt
00:00:24]} e5 {[%clk 01:32:56]} {[%emt 00:00:12]} 7. Nb3 {[%clk 01:32:06]}
{[%emt 00:00:18]} Be7 {[%clk 01:33:17]} {[%emt 00:00:11]} 8. O-O {[%clk
01:32:04]} {[%emt 00:00:31]} O-O {[%clk 01:33:38]} {[%emt 00:00:10]} 9. Be3
{[%clk 01:32:01]} {[%emt 00:00:32]} Be6 {[%clk 01:33:40]} {[%emt 00:00:29]} 10.
Bf3 {[%clk 01:31:16]} {[%emt 00:01:14]} Qc7 {[%clk 01:32:59]} {[%emt 00:01:10]}
11. a4 {[%clk 01:27:25]} {[%emt 00:04:22]} Nbd7 {[%clk 01:29:56]} {[%emt
00:03:34]} 12. a5 {[%clk 01:26:42]} {[%emt 00:01:12]} Rac8 {[%clk 01:29:34]}
{[%emt 00:00:51]} 13. Re1 {[%clk 01:23:35]} {[%emt 00:03:36]} Rfe8 {[%clk
01:26:16]} {[%emt 00:03:50]} 14. g3 {[%clk 01:18:46]} {[%emt 00:05:20]} Nc5
{[%clk 01:21:28]} {[%emt 00:05:18]} 15. Nxc5 {[%clk 01:15:03]} {[%emt
00:04:13]} dxc5 {[%clk 01:21:48]} {[%emt 00:00:10]} 16. Nd5 {[%clk 01:08:36]}
{[%emt 00:06:56]} Nxd5 {[%clk 01:16:13]} {[%emt 00:06:05]} 17. exd5 {[%clk
01:08:57]} {[%emt 00:00:09]} Bf5 {[%clk 01:15:55]} {[%emt 00:00:47]} 18. c4
{[%clk 01:07:50]} {[%emt 00:01:38]} Bd6 {[%clk 01:11:10]} {[%emt 00:05:16]} 19.
Qd2 {[%clk 00:53:25]} {[%emt 00:14:55]} Bg6 {[%clk 01:03:16]} {[%emt 00:08:22]}
20. Rec1 {[%clk 00:44:47]} {[%emt 00:09:09]} Qe7 {[%clk 00:54:57]} {[%emt
00:08:50]} 21. Bg2 {[%clk 00:40:08]} {[%emt 00:05:07]} f5 {[%clk 00:52:53]}
{[%emt 00:02:35]} 22. b4 {[%clk 00:35:57]} {[%emt 00:04:41]} e4 {[%clk
00:43:10]} {[%emt 00:10:12]} 23. Rab1 {[%clk 00:35:12]} {[%emt 00:01:16]} h6
{[%clk 00:29:04]} {[%emt 00:14:36]} 24. bxc5 {[%clk 00:30:56]} {[%emt
00:04:46]} Bxc5 {[%clk 00:29:23]} {[%emt 00:00:11]} 25. Bxc5 {[%clk 00:30:12]}
{[%emt 00:01:14]} Rxc5 {[%clk 00:29:10]} {[%emt 00:00:43]} 26. Rb6 {[%clk
00:22:58]} {[%emt 00:07:45]} Bf7 {[%clk 00:27:11]} {[%emt 00:02:27]} 27. Bf1
{[%clk 00:22:31]} {[%emt 00:00:57]} e3 {[%clk 00:13:39]} {[%emt 00:14:04]} 28.
fxe3 {[%clk 00:21:46]} {[%emt 00:01:14]} Qxe3+ {[%clk 00:14:06]} {[%emt
00:00:03]} 29. Qxe3 {[%clk 00:21:56]} {[%emt 00:00:20]} Rxe3 {[%clk 00:14:35]}
{[%emt 00:00:01]} 30. d6 {[%clk 00:21:16]} {[%emt 00:01:10]} Re8 {[%clk
00:13:40]} {[%emt 00:01:25]} 31. Rd1 {[%clk 00:16:57]} {[%emt 00:04:47]} Rd8
{[%clk 00:12:41]} {[%emt 00:01:32]} 32. Rd4 {[%clk 00:13:03]} {[%emt 00:04:23]}
Rxa5 {[%clk 00:11:28]} {[%emt 00:01:44]} 33. Rxb7 {[%clk 00:13:00]} {[%emt
00:00:33]} Rc5 {[%clk 00:11:14]} {[%emt 00:00:44]} 34. Kf2 {[%clk 00:10:08]}
{[%emt 00:03:21]} Rc6 {[%clk 00:09:43]} {[%emt 00:02:01]} 35. d7 {[%clk
00:09:26]} {[%emt 00:01:13]} Be6 {[%clk 00:09:00]} {[%emt 00:01:13]} 36. Bg2
{[%clk 00:06:05]} {[%emt 00:03:51]} Rc5 {[%clk 00:07:31]} {[%emt 00:01:59]} 37.
Ra7 {[%clk 00:03:57]} {[%emt 00:02:38]} Kf7 {[%clk 00:06:02]} {[%emt 00:01:59]}
38. Rxa6 {[%clk 00:02:28]} {[%emt 00:01:58]} Rxc4 {[%clk 00:04:38]} {[%emt
00:01:55]} 39. Rdd6 {[%clk 00:02:06]} {[%emt 00:00:51]} Rc2+ {[%clk 00:04:21]}
{[%emt 00:00:47]} 40. Kf3 {[%clk 00:00:45]} {[%emt 00:01:52]} Bxd7 {[%clk
00:04:00]} {[%emt 00:00:51]} 41. Bh3 {[%clk 00:25:20]} {[%emt 00:05:54]} Ke7
{[%clk 00:30:38]} {[%emt 00:03:52]} 42. Rg6 {[%clk 00:25:08]} {[%emt 00:00:42]}
Kf7 {[%clk 00:24:52]} {[%emt 00:06:14]} 43. Rgd6 {[%clk 00:25:06]} {[%emt
00:00:34]} Rc3+ {[%clk 00:24:49]} {[%emt 00:00:32]} 44. Kf2 {[%clk 00:20:56]}
{[%emt 00:04:41]} Rc2+ {[%clk 00:19:04]} {[%emt 00:06:16]} 45. Kf3 {[%clk
00:21:08]} {[%emt 00:00:17]} Rc3+ {[%clk 00:18:23]} {[%emt 00:01:12]} 46. Kf2
{[%clk 00:21:26]} {[%emt 00:00:11]} Ke7 {[%clk 00:10:50]} {[%emt 00:08:03]} 47.
Rg6 {[%clk 00:20:38]} {[%emt 00:01:18]} Kf7 {[%clk 00:09:08]} {[%emt 00:02:12]}
48. Rgd6 {[%clk 00:20:48]} {[%emt 00:00:20]} Ke7 {[%clk 00:08:12]} {[%emt
00:01:27]} 1/2-1/2

[Event "Schack-SM 2023: Veteran-SM 65+"]
[Site "Helsingborg Arena, Mellersta Stenbocksgatan 14, Helsingborg, Sweden"]
[Date "2023.07.06"]
[Round "6.5"]
[White "Westin, Ake"]
[Black "Blomstrom, Lars"]
[Result "0-1"]
[TimeControl "90 minutes for 40 moves + 30 minutes for the rest of games + 30 seconds per move from move one."]
[WhiteElo "2009"]
[BlackElo "2021"]

1. e4 {[%clk 01:30:53]} {[%emt 00:00:07]} e5 {[%clk 01:30:51]} {[%emt
00:00:09]} 2. Nc3 {[%clk 01:31:10]} {[%emt 00:00:12]} Nc6 {[%clk 01:31:12]}
{[%emt 00:00:09]} 3. g3 {[%clk 01:30:58]} {[%emt 00:00:42]} Bc5 {[%clk
01:27:44]} {[%emt 00:03:58]} 4. Bg2 {[%clk 01:28:28]} {[%emt 00:03:00]} Nf6
{[%clk 01:24:53]} {[%emt 00:03:21]} 5. Nge2 {[%clk 01:28:01]} {[%emt 00:00:56]}
d6 {[%clk 01:22:12]} {[%emt 00:03:12]} 6. O-O {[%clk 01:23:01]} {[%emt
00:05:31]} a6 {[%clk 01:21:43]} {[%emt 00:00:59]} 7. h3 {[%clk 01:21:47]}
{[%emt 00:01:43]} h5 {[%clk 01:18:06]} {[%emt 00:04:07]} 8. Kh2 {[%clk
01:09:46]} {[%emt 00:12:31]} h4 {[%clk 01:14:13]} {[%emt 00:04:24]} 9. f4
{[%clk 01:07:33]} {[%emt 00:02:43]} Ng4+ {[%clk 01:13:32]} {[%emt 00:01:10]} 10.
Kh1 {[%clk 01:06:50]} {[%emt 00:01:13]} hxg3 {[%clk 01:11:54]} {[%emt
00:02:09]} 11. Nxg3 {[%clk 01:06:32]} {[%emt 00:00:48]} Nf2+ {[%clk 01:11:13]}
{[%emt 00:01:10]} 12. Rxf2 {[%clk 01:06:47]} {[%emt 00:00:16]} Bxf2 {[%clk
01:11:41]} {[%emt 00:00:03]} 13. Qf3 {[%clk 01:05:22]} {[%emt 00:01:54]} Bxg3
{[%clk 00:53:19]} {[%emt 00:18:51]} 14. Qxg3 {[%clk 01:05:41]} {[%emt
00:00:11]} Qh4 {[%clk 00:52:49]} {[%emt 00:01:00]} 15. Qxh4 {[%clk 01:04:36]}
{[%emt 00:01:36]} Rxh4 {[%clk 00:53:16]} {[%emt 00:00:03]} 16. f5 {[%clk
01:04:36]} {[%emt 00:00:29]} Ne7 {[%clk 00:48:12]} {[%emt 00:05:34]} 17. d3
{[%clk 01:03:15]} {[%emt 00:01:51]} f6 {[%clk 00:48:33]} {[%emt 00:00:09]} 18.
Be3 {[%clk 01:02:43]} {[%emt 00:01:01]} Bd7 {[%clk 00:47:50]} {[%emt 00:01:14]}
0-1

[Event "Schack-SM 2023: Veteran-SM 50+"]
[Site "Helsingborg Arena, Mellersta Stenbocksgatan 14, Helsingborg, Sweden"]
[Date "2023.07.06"]
[Round "6.5"]
[White "Johansson, Ingemar 1966"]
[Black "Andersson, Bjorn 1961"]
[Result "1-0"]
[TimeControl "90 minutes for 40 moves + 30 minutes for the rest of games + 30 seconds per move from move one."]
[WhiteElo "1839"]
[BlackElo "1791"]

1. c4 {[%clk 01:30:56]} {[%emt 00:00:03]} c6 {[%clk 01:30:22]} {[%emt
00:00:39]} 2. g3 {[%clk 01:30:52]} {[%emt 00:00:33]} Nf6 {[%clk 01:30:40]}
{[%emt 00:00:13]} 3. Bg2 {[%clk 01:31:11]} {[%emt 00:00:10]} d5 {[%clk
01:30:53]} {[%emt 00:00:17]} 4. Nf3 {[%clk 01:31:11]} {[%emt 00:00:30]} h6
{[%clk 01:30:50]} {[%emt 00:00:34]} 5. O-O {[%clk 01:28:54]} {[%emt 00:02:45]}
Bf5 {[%clk 01:26:26]} {[%emt 00:04:55]} 6. b3 {[%clk 01:23:25]} {[%emt
00:05:59]} g5 {[%clk 01:26:33]} {[%emt 00:00:23]} 7. Bb2 {[%clk 01:22:19]}
{[%emt 00:01:36]} Bg7 {[%clk 01:26:52]} {[%emt 00:00:11]} 8. d3 {[%clk
01:21:27]} {[%emt 00:01:23]} O-O {[%clk 01:26:58]} {[%emt 00:00:23]} 9. Nbd2
{[%clk 01:17:58]} {[%emt 00:03:58]} Nbd7 {[%clk 01:25:29]} {[%emt 00:01:59]} 10.
Re1 {[%clk 01:14:17]} {[%emt 00:04:12]} Re8 {[%clk 01:25:18]} {[%emt 00:00:42]}
11. e4 {[%clk 01:13:24]} {[%emt 00:01:22]} dxe4 {[%clk 01:21:57]} {[%emt
00:03:51]} 12. dxe4 {[%clk 01:08:55]} {[%emt 00:04:59]} Nxe4 {[%clk 01:20:55]}
{[%emt 00:01:32]} 13. Bxg7 {[%clk 01:07:56]} {[%emt 00:01:29]} Nxd2 {[%clk
01:18:46]} {[%emt 00:02:40]} 14. Nd4 {[%clk 01:02:09]} {[%emt 00:06:15]} Be4
{[%clk 01:08:31]} {[%emt 00:10:46]} 15. Qxd2 {[%clk 00:57:58]} {[%emt
00:04:41]} Bxg2 {[%clk 01:04:10]} {[%emt 00:04:51]} 16. Bxh6 {[%clk 00:54:48]}
{[%emt 00:03:40]} f6 {[%clk 01:04:19]} {[%emt 00:00:21]} 17. Kxg2 {[%clk
00:52:59]} {[%emt 00:02:19]} e5 {[%clk 01:01:48]} {[%emt 00:03:00]} 18. Qc2
{[%clk 00:48:33]} {[%emt 00:04:57]} Qe7 {[%clk 01:01:03]} {[%emt 00:01:13]} 19.
Qg6+ {[%clk 00:44:53]} {[%emt 00:04:12]} Kh8 {[%clk 01:00:28]} {[%emt
00:00:59]} 20. Nf5 {[%clk 00:43:23]} {[%emt 00:02:06]} Rg8 {[%clk 00:59:40]}
{[%emt 00:01:18]} 21. Nxe7 {[%clk 00:39:19]} {[%emt 00:04:34]} Rxg6 {[%clk
01:00:03]} {[%emt 00:00:07]} 22. Nxg6+ {[%clk 00:39:21]} {[%emt 00:00:28]} Kh7
{[%clk 01:00:32]} {[%emt 00:00:01]} 23. Nf8+ {[%clk 00:39:29]} {[%emt
00:00:21]} Nxf8 {[%clk 01:00:52]} {[%emt 00:00:12]} 24. Bxf8 {[%clk 00:39:51]}
{[%emt 00:00:08]} Rxf8 {[%clk 01:01:19]} {[%emt 00:00:02]} 1-0